[Event "15th Governor Cup 2019"]
[Site "Khanty-Mansiysk"]
[Date "2019.11.23"]
[Round "7.17"]
[White "Mukhina, Jana"]
[Black "Lysenko, Margarita"]
[Result "0-1"]
[ECO "E10"]
[WhiteElo "2105"]
[BlackElo "2243"]
[Annotator "NA"]
[PlyCount "130"]
[EventDate "2019.11.19"]
[EventType "swiss"]
[EventCountry "RUS"]
[SourceTitle "playchess.com"]
[Source "ChessBase"]
[SourceQuality "1"]
[TimeControl "5400+30"]

1. d4 {[%emt 0:00:00]} Nf6 {[%emt 0:00:00]} 2. c4 {[%emt 0:00:00]} e6 {[%emt 0:00:00]} 3. Nf3 {[%emt 0:00:00]} c5 {[%emt 0:05:16]} 4. Nc3 {[%emt 0:09:51]} cxd4 {[%emt 0:10:35]} 5. Nxd4 {[%emt 0:00:56]} d5 {[%emt 0:01:44]} 6. cxd5 {[%emt 0:02:21]} Nxd5 {[%emt 0:06:14]} 7. Ndb5 {[%emt 0:01:55]} Bd7 {[%emt 0:16:29]} 8. e4 {[%emt 0:05:48]} Nxc3 {[%emt 0:00:29]} 9. Nxc3 {[%emt 0:06:42]} Bc5 {[%emt 0:04:11]} 10. Be2 {[%emt 0:04:02]} O-O {[%emt 0:03:16]} 11. O-O {[%emt 0:00:03]} Nc6 {[%emt 0:05:52]} 12. Bb5 {[%emt 0:10:44]} a6 {[%emt 0:04:18]} 13. Bxc6 {[%emt 0:06:49]} Bxc6 {[%emt 0:00:27]} 14. Qe2 {[%emt 0:00:55]} Qf6 {[%emt 0:08:54]} 15. Be3 {[%emt 0:07:22]} Be7 {[%emt 0:03:28]} 16. Qg4 {[%emt 0:03:56]} Rfd8 {[%emt 0:05:19]} 17. Rfd1 {[%emt 0:00:20]} Qg6 {[%emt 0:01:12]} 18. Qxg6 {[%emt 0:00:15]} hxg6 {[%emt 0:00:07]} 19. Bb6 {[%emt 0:00:31]} Rxd1+ {[%emt 0:00:36]} 20. Rxd1 {[%emt 0:00:01]} Rc8 {[%emt 0:02:03]} 21. f3 {[%emt 0:05:59]} g5 {[%emt 0:02:29]} 22. Kf2 {[%emt 0:05:32]} f6 {[%emt 0:00:31]} 23. a4 {[%emt 0:02:13]} Kf7 {[%emt 0:00:30]} 24. b3 {[%emt 0:06:44]} Be8 {[%emt 0:00:38]} 25. Ne2 {[%emt 0:00:09]} Rc6 {[%emt 0:01:25]} 26. Be3 {[%emt 0:01:26]} Rc2 {[%emt 0:02:16]} 27. Rd2 {[%emt 0:00:20]} Rc8 {[%emt 0:01:55]} 28. Nd4 {[%emt 0:01:48]} Rc3 {[%emt 0:02:54]} 29. Rc2 {[%emt 0:00:18]} Rxc2+ {[%emt 0:00:07]} 30. Nxc2 {[%emt 0:00:01]} Bd7 {[%emt 0:00:22]} 31. Bb6 {[%emt 0:01:01]} e5 {[%emt 0:00:36]} 32. Ne3 {[%emt 0:03:20]} Be6 {[%emt 0:00:21]} 33. Nc4 {[%emt 0:00:09]} g4 {[%emt 0:00:32]} 34. Ke3 {[%emt 0:01:38]} gxf3 {[%emt 0:00:16]} 35. gxf3 {[%emt 0:00:11]} Bb4 {[%emt 0:02:23]} 36. Kd3 {[%emt 0:00:36]} Ke7 {[%emt 0:00:52]} 37. Na5 {[%emt 0:05:08]} Bc8 {[%emt 0:05:56]} 38. Kc4 {[%emt 0:00:41]} Bd2 {[%emt 0:01:18]} 39. Bc5+ {[%emt 0:01:29]} Kf7 {[%emt 0:00:44]} 40. b4 {[%emt 0:03:46]} Bd7 {[%emt 0:01:01]} 41. Nb3 {[%emt 0:02:18]} Bf4 {[%emt 0:01:42]} 42. b5 {[%emt 0:00:12]} axb5+ {[%emt 0:00:36]} 43. axb5 {[%emt 0:00:01]} Be6+ {[%emt 0:00:18]} 44. Kc3 {[%emt 0:00:08]} Bxh2 {[%emt 0:00:27]} 45. Na5 {[%emt 0:01:14]} Bc8 {[%emt 0:00:10]} 46. Nc4 {[%emt 0:02:01]} Ke6 {[%emt 0:00:45]} 47. Nd6 {[%emt 0:02:01]} Bd7 {[%emt 0:00:27]} 48. Nxb7 {[%emt 0:00:32]} Bxb5 {[%emt 0:00:08]} 49. Kd2 {[%emt 0:00:26]} Bf4+ {[%emt 0:01:01]} 50. Ke1 {[%emt 0:00:03]} Bg3+ {[%emt 0:00:50]} 51. Kd2 {[%emt 0:00:07]} g6 {[%emt 0:00:53]} 52. Na5 {[%emt 0:00:30]} f5 {[%emt 0:00:28]} 53. Nb3 {[%emt 0:01:24]} fxe4 {[%emt 0:00:28]} 54. fxe4 {[%emt 0:00:01]} g5 {[%emt 0:00:24]} 55. Bg1 {[%emt 0:00:32]} Bc4 {[%emt 0:00:41]} 56. Nc5+ {[%emt 0:00:33]} Kf6 {[%emt 0:00:14]} 57. Nd7+ {[%emt 0:00:20]} Kg6 {[%emt 0:00:21]} 58. Bb6 {[%emt 0:00:53]} Bb5 {[%emt 0:00:07]} 59. Nc5 {[%emt 0:00:42]} Kh5 {[%emt 0:00:36]} 60. Ne6 {[%emt 0:00:21]} g4 {[%emt 0:00:53]} 61. Ke3 {[%emt 0:00:38]} Kh4 {[%emt 0:00:31]} 62. Bd8+ {[%emt 0:00:21]} Kh3 {[%emt 0:00:10]} 63. Bf6 {[%emt 0:00:25]} Kg2 {[%emt 0:00:23]} 64. Bg5 {[%emt 0:00:41]} Bf2+ {[%emt 0:00:13]} 65. Kd2 {[%emt 0:00:05]} Kf3 {[%emt 0:00:15]} 0-1

[Event "15th Governor Cup 2019"]
[Site "Khanty-Mansiysk"]
[Date "2019.11.23"]
[Round "7.18"]
[White "Skatchkov, Valery"]
[Black "Mironenko, Galina"]
[Result "1-0"]
[ECO "E17"]
[WhiteElo "2309"]
[BlackElo "2236"]
[Annotator "NA"]
[PlyCount "87"]
[EventDate "2019.11.19"]
[EventType "swiss"]
[EventCountry "RUS"]
[SourceTitle "playchess.com"]
[Source "ChessBase"]
[SourceQuality "1"]
[TimeControl "5400+30"]

1. d4 {[%emt 0:00:00]} Nf6 {[%emt 0:00:00]} 2. c4 {[%emt 0:00:00]} e6 {[%emt 0:00:00]} 3. Nf3 {[%emt 0:00:00]} b6 {[%emt 0:00:00]} 4. g3 {[%emt 0:00:00]} Bb7 {[%emt 0:00:00]} 5. Bg2 {[%emt 0:00:00]} Be7 {[%emt 0:00:00]} 6. O-O {[%emt 0:00:02]} O-O {[%emt 0:00:00]} 7. d5 {[%emt 0:00:02]} exd5 {[%emt 0:00:01]} 8. Nh4 {[%emt 0:00:04]} c6 {[%emt 0:00:15]} 9. cxd5 {[%emt 0:00:04]} Nxd5 {[%emt 0:00:22]} 10. Nf5 {[%emt 0:00:05]} Nc7 {[%emt 0:00:48]} 11. Nc3 {[%emt 0:00:17]} d5 {[%emt 0:00:44]} 12. e4 {[%emt 0:02:19]} Bf6 {[%emt 0:00:31]} 13. Bf4 {[%emt 0:01:21]} Bc8 {[%emt 0:13:22]} 14. Qc2 {[%emt 0:51:13]} Bxf5 {[%emt 0:10:47]} 15. Bxc7 {[%emt 0:00:21]} Qxc7 {[%emt 0:06:00]} 16. Nxd5 {[%emt 0:00:05]} Qe5 {[%emt 0:00:42]} 17. Nxf6+ {[%emt 0:00:07]} Qxf6 {[%emt 0:00:04]} 18. exf5 {[%emt 0:00:04]} a5 {[%emt 0:09:19]} 19. Rad1 {[%emt 0:00:11]} Ra7 {[%emt 0:00:56]} 20. Rd2 {[%emt 0:00:29]} Rd8 {[%emt 0:12:32]} 21. Rfd1 {[%emt 0:01:02]} Rxd2 {[%emt 0:07:02]} 22. Rxd2 {[%emt 0:00:41]} Rd7 {[%emt 0:01:44]} 23. Rxd7 {[%emt 0:01:06]} Nxd7 {[%emt 0:00:02]} 24. Bxc6 {[%emt 0:01:02]} Nc5 {[%emt 0:00:57]} 25. Bd5 {[%emt 0:05:41]} g6 {[%emt 0:04:30]} 26. fxg6 {[%emt 0:00:43]} hxg6 {[%emt 0:00:13]} 27. Qc4 {[%emt 0:04:28]} Kg7 {[%emt 0:05:17]} 28. b3 {[%emt 0:00:23]} Nd7 {[%emt 0:02:52]} 29. Kg2 {[%emt 0:00:07]} Ne5 {[%emt 0:02:32]} 30. Qd4 {[%emt 0:00:38]} Nd7 {[%emt 0:00:31]} 31. Qxf6+ {[%emt 0:01:12]} Kxf6 {[%emt 0:00:53]} 32. f4 {[%emt 0:00:30]} Nc5 {[%emt 0:01:06]} 33. Kf3 {[%emt 0:00:39]} Na6 {[%emt 0:03:57]} 34. a3 {[%emt 0:01:31]} Nc7 {[%emt 0:00:45]} 35. Ke4 {[%emt 0:01:21]} Ke7 {[%emt 0:01:41]} 36. a4 {[%emt 0:00:11]} Ne8 {[%emt 0:02:58]} 37. Kd4 {[%emt 0:03:25]} Nc7 {[%emt 0:02:29]} 38. Bc4 {[%emt 0:00:13]} Kf6 {[%emt 0:00:36]} 39. h4 {[%emt 0:01:25]} Kf5 {[%emt 0:00:37]} 40. Bxf7 {[%emt 0:00:16]} Kg4 {[%emt 0:01:14]} 41. Bxg6 {[%emt 0:00:06]} Kxg3 {[%emt 0:00:04]} 42. h5 {[%emt 0:00:40]} Kxf4 {[%emt 0:00:05]} 43. h6 {[%emt 0:00:30]} Ne6+ {[%emt 0:00:05]} 44. Kd5 {[%emt 0:00:08]} 1-0

[Event "15th Governor Cup 2019"]
[Site "Khanty-Mansiysk"]
[Date "2019.11.23"]
[Round "7.19"]
[White "Semenova, Elena"]
[Black "Skvortsov, Andrey"]
[Result "1-0"]
[ECO "C44"]
[WhiteElo "2282"]
[BlackElo "2137"]
[Annotator "NA"]
[PlyCount "86"]
[EventDate "2019.11.19"]
[EventType "swiss"]
[EventCountry "RUS"]
[SourceTitle "playchess.com"]
[Source "ChessBase"]
[SourceQuality "1"]
[TimeControl "5400+30"]

1. e4 {[%emt 0:00:00]} e5 {[%emt 0:08:07]} 2. Nf3 {[%emt 0:00:00]} Nc6 {[%emt 0:00:02]} 3. d4 {[%emt 0:00:00]} exd4 {[%emt 0:00:06]} 4. Nxd4 {[%emt 0:00:04]} Bb4+ {[%emt 0:00:04]} 5. c3 {[%emt 0:00:23]} Be7 {[%emt 0:00:03]} 6. Bc4 {[%emt 0:03:39]} Nf6 {[%emt 0:00:20]} 7. Nxc6 {[%emt 0:03:02]} bxc6 {[%emt 0:00:04]} 8. e5 {[%emt 0:01:16]} Ne4 {[%emt 0:00:03]} 9. Qf3 {[%emt 0:07:10]} d5 {[%emt 0:00:03]} 10. exd6 {[%emt 0:00:36]} Nxd6 {[%emt 0:00:06]} 11. Bd3 {[%emt 0:00:08]} O-O {[%emt 0:00:50]} 12. O-O {[%emt 0:02:18]} Rb8 {[%emt 0:03:59]} 13. Nd2 {[%emt 0:10:29]} c5 {[%emt 0:10:17]} 14. Nc4 {[%emt 0:04:15]} Bb7 {[%emt 0:04:47]} 15. Qh3 {[%emt 0:02:05]} g6 {[%emt 0:00:58]} 16. Bh6 {[%emt 0:13:10]} Re8 {[%emt 0:00:31]} 17. Rad1 {[%emt 0:00:53]} Bf6 {[%emt 0:03:40]} 18. Be3 {[%emt 0:05:35]} Bc8 {[%emt 0:00:07]} 19. Qg3 {[%emt 0:02:16]} Be6 {[%emt 0:00:42]} 20. Bxc5 {[%emt 0:08:07]} Bh4 {[%emt 0:00:11]} 21. Qf3 {[%emt 0:05:03]} Qc8 {[%emt 0:03:32]} 22. Bxd6 {[%emt 0:07:32]} Bg4 {[%emt 0:00:04]} 23. Qf4 {[%emt 0:00:44]} Bxd1 {[%emt 0:00:29]} 24. Rxd1 {[%emt 0:02:18]} cxd6 {[%emt 0:00:24]} 25. Qxh4 {[%emt 0:00:39]} Qe6 {[%emt 0:00:12]} 26. b3 {[%emt 0:02:55]} Rbc8 {[%emt 0:00:27]} 27. Qd4 {[%emt 0:00:28]} Red8 {[%emt 0:01:07]} 28. Ne3 {[%emt 0:01:16]} h5 {[%emt 0:00:46]} 29. Bc4 {[%emt 0:00:46]} Qe5 {[%emt 0:00:11]} 30. Qxe5 {[%emt 0:03:51]} dxe5 {[%emt 0:00:05]} 31. Rxd8+ {[%emt 0:00:09]} Rxd8 {[%emt 0:00:03]} 32. Bd5 {[%emt 0:00:13]} Kf8 {[%emt 0:00:15]} 33. c4 {[%emt 0:00:02]} Ke7 {[%emt 0:00:08]} 34. Kf1 {[%emt 0:00:17]} a5 {[%emt 0:00:09]} 35. Ke2 {[%emt 0:00:19]} f5 {[%emt 0:00:11]} 36. Kd3 {[%emt 0:00:44]} Rc8 {[%emt 0:00:12]} 37. a3 {[%emt 0:00:41]} Rb8 {[%emt 0:00:04]} 38. c5 {[%emt 0:00:49]} f4 {[%emt 0:00:16]} 39. Nc2 {[%emt 0:00:54]} g5 {[%emt 0:00:03]} 40. h3 {[%emt 0:00:51]} g4 {[%emt 0:00:11]} 41. hxg4 {[%emt 0:00:05]} hxg4 {[%emt 0:00:06]} 42. b4 {[%emt 0:00:31]} axb4 {[%emt 0:00:04]} 43. axb4 {[%emt 0:00:11]} Rd8 {[%emt 0:00:08]} 1-0

[Event "15th Governor Cup 2019"]
[Site "Khanty-Mansiysk"]
[Date "2019.11.23"]
[Round "7.20"]
[White "Shafigullina, Zarina"]
[Black "Martynyuk, Elizaveta"]
[Result "0-1"]
[ECO "D02"]
[WhiteElo "2295"]
[BlackElo "2020"]
[Annotator "NA"]
[PlyCount "88"]
[EventDate "2019.11.19"]
[EventType "swiss"]
[EventCountry "RUS"]
[SourceTitle "playchess.com"]
[Source "ChessBase"]
[SourceQuality "1"]
[TimeControl "5400+30"]

1. d4 {[%emt 0:00:00]} d5 {[%emt 0:07:44]} 2. Nf3 {[%emt 0:00:00]} Nf6 {[%emt 0:00:12]} 3. c4 {[%emt 0:00:00]} c6 {[%emt 0:00:02]} 4. g3 {[%emt 0:00:00]} Bf5 {[%emt 0:00:15]} 5. Nc3 {[%emt 0:00:00]} e6 {[%emt 0:00:10]} 6. Nh4 {[%emt 0:00:06]} Be4 {[%emt 0:01:53]} 7. f3 {[%emt 0:00:05]} Bg6 {[%emt 0:00:04]} 8. Nxg6 {[%emt 0:01:40]} hxg6 {[%emt 0:00:04]} 9. Qb3 {[%emt 0:00:07]} Qb6 {[%emt 0:00:52]} 10. c5 {[%emt 0:00:06]} Qxb3 {[%emt 0:00:38]} 11. axb3 {[%emt 0:00:05]} Nbd7 {[%emt 0:00:12]} 12. b4 {[%emt 0:00:27]} a6 {[%emt 0:02:04]} 13. b5 {[%emt 0:07:41]} cxb5 {[%emt 0:00:11]} 14. Nxb5 {[%emt 0:00:16]} Rc8 {[%emt 0:00:16]} 15. Nc3 {[%emt 0:00:08]} Be7 {[%emt 0:17:01]} 16. e3 {[%emt 0:00:41]} g5 {[%emt 0:13:57]} 17. g4 {[%emt 0:03:45]} Nb8 {[%emt 0:02:18]} 18. Bd2 {[%emt 0:13:38]} Nc6 {[%emt 0:00:39]} 19. Be2 {[%emt 0:00:31]} e5 {[%emt 0:01:20]} 20. Ra4 {[%emt 0:01:44]} Kd7 {[%emt 0:01:33]} 21. Kf1 {[%emt 0:01:16]} Rh3 {[%emt 0:07:59]} 22. Kg2 {[%emt 0:12:02]} Rch8 {[%emt 0:10:03]} 23. Nd1 {[%emt 0:00:08]} Ne8 {[%emt 0:02:41]} 24. Bc3 {[%emt 0:10:43]} exd4 {[%emt 0:00:53]} 25. exd4 {[%emt 0:00:05]} Nc7 {[%emt 0:00:56]} 26. Ne3 {[%emt 0:00:11]} Bf6 {[%emt 0:00:58]} 27. Bd3 {[%emt 0:01:49]} g6 {[%emt 0:00:56]} 28. Bb1 {[%emt 0:01:50]} Ne6 {[%emt 0:02:26]} 29. Nxd5 {[%emt 0:04:55]} Bxd4 {[%emt 0:00:07]} 30. Bxd4 {[%emt 0:00:06]} Ncxd4 {[%emt 0:00:05]} 31. Be4 {[%emt 0:00:37]} f5 {[%emt 0:02:36]} 32. gxf5 {[%emt 0:09:38]} gxf5 {[%emt 0:01:25]} 33. Nb6+ {[%emt 0:00:40]} Kc7 {[%emt 0:01:22]} 34. Bd5 {[%emt 0:00:42]} Nf4+ {[%emt 0:00:15]} 35. Kf2 {[%emt 0:01:56]} Rxh2+ {[%emt 0:00:11]} 36. Rxh2 {[%emt 0:00:10]} Rxh2+ {[%emt 0:00:05]} 37. Kf1 {[%emt 0:01:18]} Nc2 {[%emt 0:00:26]} 38. Kg1 {[%emt 0:01:18]} Rd2 {[%emt 0:03:19]} 39. Bb3 {[%emt 0:00:15]} Ne1 {[%emt 0:00:26]} 40. Nc4 {[%emt 0:00:06]} Nxf3+ {[%emt 0:00:10]} 41. Kf1 {[%emt 0:00:05]} Rh2 {[%emt 0:00:40]} 42. Ne3 {[%emt 0:00:05]} Nd3 {[%emt 0:02:36]} 43. Ng2 {[%emt 0:00:05]} Nxc5 {[%emt 0:00:28]} 44. Rc4 {[%emt 0:00:13]} Nd2+ {[%emt 0:00:07]} 0-1

[Event "15th Governor Cup 2019"]
[Site "Khanty-Mansiysk"]
[Date "2019.11.23"]
[Round "7.21"]
[White "Ryabov, Georgi"]
[Black "Kochukova, Anna"]
[Result "0-1"]
[ECO "A20"]
[WhiteElo "1887"]
[BlackElo "2117"]
[Annotator "NA"]
[PlyCount "108"]
[EventDate "2019.11.19"]
[EventType "swiss"]
[EventCountry "RUS"]
[SourceTitle "playchess.com"]
[Source "ChessBase"]
[SourceQuality "1"]
[TimeControl "5400+30"]

1. c4 {[%emt 0:08:11]} e5 {[%emt 0:00:00]} 2. g3 {[%emt 0:00:06]} Nf6 {[%emt 0:00:03]} 3. Bg2 {[%emt 0:00:09]} d5 {[%emt 0:00:11]} 4. cxd5 {[%emt 0:00:04]} Nxd5 {[%emt 0:00:08]} 5. Nc3 {[%emt 0:00:04]} Nb6 {[%emt 0:00:13]} 6. Nf3 {[%emt 0:00:08]} Nc6 {[%emt 0:00:07]} 7. O-O {[%emt 0:00:06]} Be7 {[%emt 0:00:15]} 8. d3 {[%emt 0:00:08]} O-O {[%emt 0:00:42]} 9. a3 {[%emt 0:02:37]} Be6 {[%emt 0:00:31]} 10. b4 {[%emt 0:05:15]} a5 {[%emt 0:00:33]} 11. b5 {[%emt 0:00:07]} Nd4 {[%emt 0:00:05]} 12. Rb1 {[%emt 0:00:11]} f6 {[%emt 0:02:08]} 13. e3 {[%emt 0:01:42]} Nxf3+ {[%emt 0:05:27]} 14. Bxf3 {[%emt 0:00:48]} Qc8 {[%emt 0:00:07]} 15. Qe2 {[%emt 0:00:34]} Rd8 {[%emt 0:04:18]} 16. Rd1 {[%emt 0:00:22]} a4 {[%emt 0:01:07]} 17. Bg2 {[%emt 0:01:39]} Ra5 {[%emt 0:06:06]} 18. Rd2 {[%emt 0:09:47]} Bf8 {[%emt 0:04:23]} 19. Qf3 {[%emt 0:08:48]} Ra7 {[%emt 0:08:39]} 20. Bb2 {[%emt 0:03:04]} Nc4 {[%emt 0:07:23]} 21. Rdd1 {[%emt 0:03:05]} Nxb2 {[%emt 0:04:12]} 22. Rxb2 {[%emt 0:00:36]} Bg4 {[%emt 0:00:12]} 23. Qe4 {[%emt 0:00:18]} Bxd1 {[%emt 0:00:43]} 24. Nxd1 {[%emt 0:00:05]} Qd7 {[%emt 0:05:37]} 25. Qc4+ {[%emt 0:03:33]} Kh8 {[%emt 0:00:47]} 26. Rd2 {[%emt 0:00:20]} Bxa3 {[%emt 0:03:18]} 27. Nc3 {[%emt 0:00:35]} Bd6 {[%emt 0:04:32]} 28. Nxa4 {[%emt 0:00:39]} Rda8 {[%emt 0:00:24]} 29. Ra2 {[%emt 0:00:30]} Qe8 {[%emt 0:01:01]} 30. h3 {[%emt 0:00:12]} g6 {[%emt 0:01:43]} 31. Nc3 {[%emt 0:00:45]} Rxa2 {[%emt 0:04:58]} 32. Nxa2 {[%emt 0:00:02]} Ra7 {[%emt 0:00:13]} 33. Nc3 {[%emt 0:00:08]} Kg7 {[%emt 0:01:49]} 34. Ne4 {[%emt 0:00:58]} Qe7 {[%emt 0:05:46]} 35. Kh2 {[%emt 0:00:37]} b6 {[%emt 0:02:11]} 36. Nc3 {[%emt 0:00:37]} Ra5 {[%emt 0:03:07]} 37. Qc6 {[%emt 0:00:45]} h5 {[%emt 0:03:16]} 38. Nd5 {[%emt 0:00:09]} Qd8 {[%emt 0:00:29]} 39. Qc4 {[%emt 0:01:00]} Qd7 {[%emt 0:01:43]} 40. Nc3 {[%emt 0:01:14]} Ra1 {[%emt 0:02:59]} 41. d4 {[%emt 0:02:58]} h4 {[%emt 0:01:04]} 42. Ne4 {[%emt 0:02:08]} hxg3+ {[%emt 0:01:18]} 43. fxg3 {[%emt 0:00:07]} Ra3 {[%emt 0:00:48]} 44. Qc1 {[%emt 0:05:19]} Ra5 {[%emt 0:00:56]} 45. Qc3 {[%emt 0:01:05]} Qe7 {[%emt 0:02:50]} 46. Qc6 {[%emt 0:01:51]} Ra3 {[%emt 0:04:03]} 47. Qc1 {[%emt 0:00:32]} Rb3 {[%emt 0:00:15]} 48. Nc3 {[%emt 0:01:09]} exd4 {[%emt 0:01:21]} 49. exd4 {[%emt 0:00:19]} Bxg3+ {[%emt 0:00:31]} 50. Kxg3 {[%emt 0:00:50]} Qb4 {[%emt 0:02:49]} 51. Kh2 {[%emt 0:00:12]} Rxc3 {[%emt 0:00:18]} 52. Qf4 {[%emt 0:00:06]} Qxb5 {[%emt 0:02:03]} 53. Qe4 {[%emt 0:00:30]} Qb4 {[%emt 0:00:31]} 54. Qd5 {[%emt 0:00:34]} Qd6+ {[%emt 0:00:15]} 0-1

[Event "15th Governor Cup 2019"]
[Site "Khanty-Mansiysk"]
[Date "2019.11.23"]
[Round "7.22"]
[White "Voskresenskaya, Marta"]
[Black "Dorofeeva, Nyurguiaana"]
[Result "1-0"]
[ECO "E11"]
[WhiteElo "1859"]
[BlackElo "1848"]
[Annotator "NA"]
[PlyCount "151"]
[EventDate "2019.11.19"]
[EventType "swiss"]
[EventCountry "RUS"]
[SourceTitle "playchess.com"]
[Source "ChessBase"]
[SourceQuality "1"]
[TimeControl "5400+30"]

1. d4 {[%emt 0:00:00]} Nf6 {[%emt 0:00:00]} 2. Nf3 {[%emt 0:00:00]} e6 {[%emt 0:00:00]} 3. c4 {[%emt 0:00:00]} Bb4+ {[%emt 0:00:21]} 4. Bd2 {[%emt 0:00:05]} c5 {[%emt 0:00:08]} 5. g3 {[%emt 0:02:15]} Qb6 {[%emt 0:00:16]} 6. e3 {[%emt 0:02:10]} Nc6 {[%emt 0:00:37]} 7. Bxb4 {[%emt 0:05:45]} Qxb4+ {[%emt 0:00:13]} 8. Qd2 {[%emt 0:00:05]} Ne4 {[%emt 0:00:31]} 9. Qxb4 {[%emt 0:00:06]} Nxb4 {[%emt 0:00:06]} 10. Na3 {[%emt 0:00:03]} b6 {[%emt 0:01:16]} 11. Be2 {[%emt 0:01:30]} Bb7 {[%emt 0:00:54]} 12. O-O {[%emt 0:00:20]} a6 {[%emt 0:06:21]} 13. dxc5 {[%emt 0:00:46]} bxc5 {[%emt 0:01:15]} 14. Rfd1 {[%emt 0:01:53]} d6 {[%emt 0:08:03]} 15. Nd2 {[%emt 0:01:04]} Ng5 {[%emt 0:00:33]} 16. f3 {[%emt 0:00:34]} f5 {[%emt 0:01:52]} 17. Rdc1 {[%emt 0:10:33]} h5 {[%emt 0:02:52]} 18. h4 {[%emt 0:00:05]} Nf7 {[%emt 0:00:09]} 19. Nc2 {[%emt 0:00:37]} Nc6 {[%emt 0:00:25]} 20. f4 {[%emt 0:07:21]} Ke7 {[%emt 0:09:34]} 21. e4 {[%emt 0:04:48]} g6 {[%emt 0:03:04]} 22. Re1 {[%emt 0:03:53]} Kf6 {[%emt 0:07:43]} 23. Bf3 {[%emt 0:02:47]} e5 {[%emt 0:03:32]} 24. Re3 {[%emt 0:12:12]} Nh6 {[%emt 0:28:07]} 25. Rb3 {[%emt 0:00:56]} Rab8 {[%emt 0:00:46]} 26. Rb6 {[%emt 0:01:22]} Ba8 {[%emt 0:02:17]} 27. Rxb8 {[%emt 0:02:00]} Rxb8 {[%emt 0:00:21]} 28. b3 {[%emt 0:00:03]} Ng4 {[%emt 0:00:46]} 29. Bxg4 {[%emt 0:01:05]} hxg4 {[%emt 0:02:14]} 30. Ne3 {[%emt 0:04:04]} Nd4 {[%emt 0:07:51]} 31. Nd5+ {[%emt 0:03:41]} Bxd5 {[%emt 0:00:18]} 32. fxe5+ {[%emt 0:01:16]} dxe5 {[%emt 0:02:48]} 33. cxd5 {[%emt 0:02:03]} Nf3+ {[%emt 0:02:34]} 34. Nxf3 {[%emt 0:00:23]} gxf3 {[%emt 0:00:05]} 35. exf5 {[%emt 0:01:16]} Kxf5 {[%emt 0:00:10]} 36. Kf2 {[%emt 0:01:04]} e4 {[%emt 0:01:53]} 37. Rc1 {[%emt 0:01:43]} Re8 {[%emt 0:00:14]} 38. Ke3 {[%emt 0:02:03]} Kg4 {[%emt 0:00:26]} 39. d6 {[%emt 0:02:47]} Kxg3 {[%emt 0:03:49]} 40. Rg1+ {[%emt 0:01:21]} Kxh4 {[%emt 0:00:06]} 41. Rxg6 {[%emt 0:00:05]} Rf8 {[%emt 0:01:07]} 42. Rg1 {[%emt 0:04:38]} f2 {[%emt 0:00:16]} 43. Rf1 {[%emt 0:00:01]} Kg3 {[%emt 0:00:17]} 44. d7 {[%emt 0:00:06]} Rd8 {[%emt 0:03:21]} 45. Rxf2 {[%emt 0:00:02]} Rxd7 {[%emt 0:00:07]} 46. Rc2 {[%emt 0:00:13]} Rd5 {[%emt 0:01:15]} 47. Kxe4 {[%emt 0:00:28]} Rh5 {[%emt 0:00:11]} 48. Kd3 {[%emt 0:00:20]} Kf3 {[%emt 0:00:31]} 49. Kc4 {[%emt 0:00:20]} Ke3 {[%emt 0:00:46]} 50. Rg2 {[%emt 0:00:14]} a5 {[%emt 0:00:56]} 51. Kb5 {[%emt 0:01:11]} Kd4 {[%emt 0:00:12]} 52. Rg4+ {[%emt 0:00:12]} Kc3 {[%emt 0:00:24]} 53. Kxa5 {[%emt 0:06:32]} c4+ {[%emt 0:00:28]} 54. Ka4 {[%emt 0:00:02]} cxb3 {[%emt 0:00:10]} 55. axb3 {[%emt 0:00:02]} Rh8 {[%emt 0:01:36]} 56. Rc4+ {[%emt 0:01:09]} Kd3 {[%emt 0:00:12]} 57. Rc5 {[%emt 0:01:25]} Ra8+ {[%emt 0:00:19]} 58. Ra5 {[%emt 0:00:41]} Rb8 {[%emt 0:00:11]} 59. b4 {[%emt 0:00:07]} Kc4 {[%emt 0:00:44]} 60. Rc5+ {[%emt 0:00:05]} Kd4 {[%emt 0:00:03]} 61. Rg5 {[%emt 0:01:13]} Kc4 {[%emt 0:01:04]} 62. Rc5+ {[%emt 0:00:19]} Kd4 {[%emt 0:00:04]} 63. Kb3 {[%emt 0:00:13]} Rb7 {[%emt 0:01:43]} 64. Rh5 {[%emt 0:00:07]} Rc7 {[%emt 0:00:26]} 65. b5 {[%emt 0:00:59]} Rc5 {[%emt 0:00:33]} 66. Rh4+ {[%emt 0:00:02]} Kd5 {[%emt 0:00:13]} 67. Kb4 {[%emt 0:00:08]} Rc1 {[%emt 0:00:31]} 68. Rh6 {[%emt 0:00:34]} Rb1+ {[%emt 0:00:31]} 69. Ka5 {[%emt 0:00:04]} Ra1+ {[%emt 0:00:43]} 70. Kb6 {[%emt 0:00:01]} Rb1 {[%emt 0:00:14]} 71. Ka6 {[%emt 0:00:12]} Ra1+ {[%emt 0:01:01]} 72. Kb7 {[%emt 0:00:05]} Kc5 {[%emt 0:00:39]} 73. b6 {[%emt 0:00:10]} Rb1 {[%emt 0:00:23]} 74. Kc7 {[%emt 0:00:19]} Kb5 {[%emt 0:00:32]} 75. b7 {[%emt 0:01:04]} Rc1+ {[%emt 0:00:04]} 76. Kd7 {[%emt 0:00:20]} 1-0